Cogmind - Beta 15 @@@ ROGUE MODE // 2025.06.10 @ 07:33:33 Player: CL-1C0 Result: Self-destructed Performance ------------- Evolutions (8) 4000 Regions Visited (12) 2400 Robots Destroyed (20) 100 Value Destroyed (458) 458 Prototype IDs (3) 60 Alien Tech Used (0) 0 Bonus (2825) 2825 TOTAL SCORE: 9843 Bonus ------- Pacifist 1325 Entered DSFs 1500 Cogmind --------- Core Integrity 1404/1450 Matter 43/300 Energy 17/100 System Corruption 0% Temperature Cool (0) Movement Core (100) Ox1 Location -2/Research Parts ------- > --- POWER (2) -------- (None) > --- PROPULSION (7) --- Gyrokinetic Inverter Combat Antigrav System Combat Antigrav System Xenon Bombardment Thruster > --- UTILITY (12) ----- Enhanced Optical Array Experimental Signal Interpreter Advanced Terrain Scanner Improved Terrain Scan Processor Improved Terrain Scan Processor Advanced Melee Analysis Suite Hacking Suite Hacking Suite Hacking Suite Hacking Suite Improved Hacking Suite > --- WEAPON (2) ------- Axe > --- INVENTORY (5) ---- Improved Fusion Compressor Long-range Missile Launcher Plasma Cutter Peak State ------------ > --- POWER ------------ Light Fission Core Fusion Compressor > --- PROPULSION ------- Gyrokinetic Inverter Improved Linear Gravjet Combat Antigrav System Combat Antigrav System VTOL Module Improved VTOL Module Xenon Bombardment Thruster > --- UTILITY ---------- Enhanced Optical Array Experimental Signal Interpreter Advanced Terrain Scanner Improved Terrain Scan Processor Improved Terrain Scan Processor Transport Network Coupler Advanced Melee Analysis Suite Hacking Suite Improved Hacking Suite > --- WEAPON ----------- Katana > --- INVENTORY -------- Improved Fusion Compressor Long-range Missile Launcher Plasma Cutter Axe [Rating: 91] Favorites ----------- Power Fusion Compressor Power Core Fusion Compressor Propulsion Xenon Bombardment Thruster Treads Light Treads Hover Unit Combat Antigrav System Flight Unit Xenon Bombardment Thruster Utility Improved Melee Analysis Suite Device Advanced Terrain Scanner Processor Improved Melee Analysis Suite Hackware Improved Hacking Suite Weapon Axe Launcher Long-range Missile Launcher Slashing Weapon Axe Build | -11 -10 -9 -8 -7 -7 -6 -5 -5 -4 -3 -3 -2 ------- Run | Yrd Mat Mat Mat Fac DSF Fac Fac DSF Fac Res DSF Res Slots Evolved 16 | . . 2 2 2 . 2 2 . 2 2 . 2 Power 1 | . . . . . . . . . 1 . . . Propulsion 5 | . . 1 1 1 . 1 . . 1 . . . Utility 10 | . . 1 1 1 . 1 2 . . 2 . 2 Weapon . | . . . . . . . . . . . . . Parts Attached 40 | 2 . . 2 . 8 10 . 7 3 2 4 2 Power 3 | . . . . . . . . 1 1 . . 1 Engine . | . . . . . . . . . . . . . Core 3 | . . . . . . . . 1 1 . . 1 Reactor . | . . . . . . . . . . . . . Propulsion 16 | 2 . . . . 5 4 . 1 1 1 2 . Treads 2 | 2 . . . . . . . . . . . . Leg . | . . . . . . . . . . . . . Wheel . | . . . . . . . . . . . . . Hover 4 | . . . . . . . . . 1 1 2 . Flight 10 | . . . . . 5 4 . 1 . . . . Utility 16 | . . . . . 3 4 . 4 1 1 2 1 Device 2 | . . . . . . . . 2 . . . . Storage . | . . . . . . . . . . . . . Processor 9 | . . . . . 3 3 . 2 . 1 . . Hackware 5 | . . . . . . 1 . . 1 . 2 1 Protection . | . . . . . . . . . . . . . Artifact . | . . . . . . . . . . . . . Weapon 5 | . . . 2 . . 2 . 1 . . . . Energy Gun . | . . . . . . . . . . . . . Energy Cannon . | . . . . . . . . . . . . . Ballistic Gun . | . . . . . . . . . . . . . Ballistic Cannon . | . . . . . . . . . . . . . Launcher 2 | . . . 1 . . 1 . . . . . . Special Weapon . | . . . . . . . . . . . . . Impact Weapon . | . . . . . . . . . . . . . Slashing Weapon 3 | . . . 1 . . 1 . 1 . . . . Piercing Weapon . | . . . . . . . . . . . . . Special Melee Weapon . | . . . . . . . . . . . . . Unidentified Prototypes 3 | . . . . . . 1 . 1 . 1 . . Parts Lost 16 | . . . 3 . 4 1 . . 3 . 3 2 Power 1 | . . . . . . . . . . . 1 . Propulsion 12 | . . . 2 . 4 1 . . 2 . 2 1 Utility 1 | . . . . . . . . . 1 . . . Weapon 2 | . . . 1 . . . . . . . . 1 Highest Loss Streak 4 | . . . 3 . 4 1 . . 2 . 3 2 To Critical Strikes . | . . . . . . . . . . . . . Average Backups 3 | 4 1 2 3 4 4 4 5 4 4 5 4 3 Power . | 1 . . . . . . . . 1 2 1 . Propulsion . | 3 . . . . 1 . . . . . . . Utility . | . . . . 1 . . 1 1 . . . . Weapon 2 | . . 1 1 2 2 3 3 1 1 2 2 1 Tool/Special . | . . . . . . . . . . . . . Unused Backups 5 | . . . . . . 1 . 2 . . 1 1 Power 1 | . . . . . . . . . . . 1 . Propulsion . | . . . . . . . . . . . . . Utility . | . . . . . . . . . . . . . Weapon 3 | . . . . . . 1 . 2 . . . . Tool/Special 1 | . . . . . . . . . . . . 1 Average Slot Usage (%) 58 | . 28 22 13 7 25 62 70 81 79 74 82 72 Core 2 | . . . . . . . . . 10 9 6 1 Treads 3 | . 28 22 10 . . . . . . . . . Hover 2 | . . . . . . . . . . 6 14 13 Flight 14 | . . . . . 15 18 23 25 23 14 11 6 Device 2 | . . . . . . . . 8 5 4 4 4 Processor 20 | . . . . . 2 29 29 29 26 24 27 21 Hackware 5 | . . . . . . 3 5 5 7 9 11 21 Slashing Weapon 6 | . . . . 7 7 10 11 7 5 4 4 3 Peak Build Rating 91 | 2 2 2 3 3 24 44 44 61 67 76 91 87 Average Rating 39 | 1 2 2 1 3 14 34 44 56 60 69 81 82 On Entrance 30 | 6 2 2 2 3 3 18 44 44 61 62 76 78 Naked Turns 32 | . . . 32 . . . . . . . . . Heaviest Build 15 | . . . 3 3 3 7 7 13 15 15 15 10 Greatest Support 43 | 3 3 3 40 3 27 20 11 24 24 15 43 43 Greatest Overweight (x) 2 | . . . . . . . . 1 . . 2 1 Average Overweight (x) . | . . . . . . . . . . . . . Largest Inventory Capacity 5 | 5 5 5 5 5 5 5 5 5 5 5 5 5 Average Capacity 5 | 5 5 5 5 5 5 5 5 5 5 5 5 5 Most Carried 5 | 4 2 2 5 4 5 5 5 5 5 5 5 4 Average Carried 4 | 2 1 2 3 4 4 4 5 4 4 5 4 3 Final Capacity 5 | 5 5 5 5 5 5 5 5 5 5 5 5 5 Final Carried 5 | . 2 2 4 4 5 5 5 5 5 5 5 3 Class Distribution -------------------- 29% | Sprinter 20% | Hacker-Scout 20% | Mutant 19% | Gladiator 10% | Scout Dominant Class ---------------- Mutant | -10/Materials Mutant | -9/Materials Mutant | -8/Materials Mutant | -7/Factory Mutant | -7/DSF Gladiator | -6/Factory Gladiator | -5/Factory Sprinter | -5/DSF Scout | -4/Factory Hacker-Scout | -3/Research Hacker-Scout | -3/DSF Hacker-Scout | -2/Research Resources | -11 -10 -9 -8 -7 -7 -6 -5 -5 -4 -3 -3 -2 ----------- Run | Yrd Mat Mat Mat Fac DSF Fac Fac DSF Fac Res DSF Res Matter Collected 468 | 184 . . . . 7 149 . 2 121 . 5 . Remotely . | . . . . . . . . . . . . . Salvage Created 537 | . . . . . . 321 . 24 192 . . . Parts 37 | . . . . . . 20 . 3 14 . . . Haulers Intercepted 2 | . . . . . . 1 . . 1 . . . Recyclers Shooed 1 | . . . . . . . . . 1 . . . Parts Field Recycled . | . . . . . . . . . . . . . Retrieved Matter . | . . . . . . . . . . . . . Parts Self-Destructed . | . . . . . . . . . . . . . Prevented . | . . . . . . . . . . . . . Kills | -11 -10 -9 -8 -7 -7 -6 -5 -5 -4 -3 -3 -2 ------- Run | Yrd Mat Mat Mat Fac DSF Fac Fac DSF Fac Res DSF Res Combat Hostiles Destroyed 13 | . . . . . . 4 . 2 7 . . . AOE 13 | . . . . . . 4 . 2 7 . . . Classes Destroyed 7 | . . . . . . 5 . 1 1 . . . Worker 2 | . . . . . . 2 . . . . . . Builder 1 | . . . . . . . . . 1 . . . Hauler 2 | . . . . . . 1 . . 1 . . . Recycler 1 | . . . . . . 1 . . . . . . Operator 1 | . . . . . . 1 . . . . . . Swarmer 11 | . . . . . . 4 . . 7 . . . Cutter 2 | . . . . . . . . 2 . . . . Best Kill Streak 6 | . . . . . . 6 . 2 5 . . . Combat Bots Only 4 | . . . . . . 4 . 2 4 . . . Max Kills in Single Turn 4 | . . . . . . 4 . 1 3 . . . Gunslinging . | . . . . . . . . . . . . . Exploded 3 | . . . . . . 3 . 1 3 . . . Melee . | . . . . . . . . . . . . . Uniques/NPCs Destroyed . | . . . . . . . . . . . . . Combat | -11 -10 -9 -8 -7 -7 -6 -5 -5 -4 -3 -3 -2 -------- Run | Yrd Mat Mat Mat Fac DSF Fac Fac DSF Fac Res DSF Res Hostile Shots Fired 158 | . . 40 23 . 26 18 . 2 30 . 9 10 Missed 69 | . . 15 7 . 13 13 . 1 15 . 2 3 Hits 89 | . . 25 16 . 13 5 . 1 15 . 7 7 Melee 1 | . . . . . . . . 1 . . . . Projectile 88 | . . 25 16 . 13 5 . . 15 . 7 7 AOE 1 | . . . . . . . . 1 . . . . Critical Strikes 4 | . . 1 . . . . . 1 1 . 1 . Damage Taken 2027 | . . 265 299 . 243 147 . 105 368 . 446 154 Core 846 | . . 80 122 . 112 100 . 81 94 . 211 46 Absorbed by Shields . | . . . . . . . . . . . . . Core Remaining (%) 88 | 100 100 80 77 . 84 88 . 91 91 . 83 . Volleys Fired 12 | . . . 2 . . 3 . 2 5 . . . Largest 1 | . . . 1 . . 1 . 1 1 . . . Hottest 43 | . . . 30 . . 43 . 43 43 . . . Shots Fired 12 | . . . 2 . . 3 . 2 5 . . . Gun . | . . . . . . . . . . . . . Cannon . | . . . . . . . . . . . . . Launcher 12 | . . . 2 . . 3 . 2 5 . . . Special . | . . . . . . . . . . . . . Kinetic . | . . . . . . . . . . . . . Thermal . | . . . . . . . . . . . . . Explosive 12 | . . . 2 . . 3 . 2 5 . . . Electromagnetic . | . . . . . . . . . . . . . Robot Hit Streak 5 | . . . 1 . . 4 . . 5 . . . Robot Miss Streak 1 | . . . . . . . . . 1 . . . Penetration Max . | . . . . . . . . . . . . . Secondary Targets . | . . . . . . . . . . . . . Shots Hit Robots 16 | . . . 1 . . 7 . . 7 1 . . Core Hits 27 | . . . . . . 12 . 2 13 . . . Critical Kills . | . . . . . . . . . . . . . Critical Parts Destroyed . | . . . . . . . . . . . . . Critical Strikes 2 | . . . . . . 1 . . 1 . . . Sever 2 | . . . . . . 1 . . 1 . . . Melee Attacks 66 | . . . 1 . 1 41 . . 18 3 . 2 Impact . | . . . . . . . . . . . . . Slashing 66 | . . . 1 . 1 41 . . 18 3 . 2 Piercing . | . . . . . . . . . . . . . Sneak Attacks 6 | . . . . . . 2 . . 3 1 . . Combat Hostiles . | . . . . . . . . . . . . . Follow-up Attacks . | . . . . . . . . . . . . . Damage Inflicted 2267 | . . 1 26 . . 1029 . 192 948 71 . . Guns . | . . . . . . . . . . . . . Cannons . | . . . . . . . . . . . . . Explosions 1622 | . . . 25 . . 767 . 192 638 . . . Melee 643 | . . . . . . 262 . . 310 71 . . Ramming 2 | . . 1 1 . . . . . . . . . Kinetic . | . . . . . . . . . . . . . Thermal . | . . . . . . . . . . . . . Explosive 1622 | . . . 25 . . 767 . 192 638 . . . Electromagnetic . | . . . . . . . . . . . . . Impact . | . . . . . . . . . . . . . Slashing 643 | . . . . . . 262 . . 310 71 . . Piercing . | . . . . . . . . . . . . . Highest Corruption 1 | . . . . . . . . . 1 . . . Average Corruption 1 | . . . . . . . . . 1 . . . Corruption Purged . | . . . . . . . . . . . . . Corruption Blocked . | . . . . . . . . . . . . . Overload Shots . | . . . . . . . . . . . . . Overflow Damage 139 | . . . 14 . . 36 . 16 42 31 . . Projectiles . | . . . . . . . . . . . . . Explosions 101 | . . . 14 . . 36 . 16 35 . . . Melee 38 | . . . . . . . . . 7 31 . . Knockbacks . | . . . . . . . . . . . . . Impact . | . . . . . . . . . . . . . Kinetic . | . . . . . . . . . . . . . Secondary . | . . . . . . . . . . . . . Self-Inflicted Damage 108 | . . . 32 . . . . 49 27 . . . Shots 3 | . . . 1 . . . . 1 1 . . . Rammed 6 | . . 3 3 . . . . . . . . . Targets Rammed 6 | . . 3 3 . . . . . . . . . Kicked . | . . . . . . . . . . . . . Crushed . | . . . . . . . . . . . . . Highest Temperature 3 | . . . . . . . . . 3 . . . Average Temperature 3 | . . . . . . . . . 3 . . . Received Heat Transfer 177 | . . 63 36 . 12 18 . . 12 . . 36 Siege Activations . | . . . . . . . . . . . . . Martial Activations . | . . . . . . . . . . . . . Shielding Activations . | . . . . . . . . . . . . . Robots Disrupted . | . . . . . . . . . . . . . Combat Hostiles . | . . . . . . . . . . . . . Robots Corrupted . | . . . . . . . . . . . . . Combat Hostiles . | . . . . . . . . . . . . . Parts Fried . | . . . . . . . . . . . . . Impact Corruptions . | . . . . . . . . . . . . . Robots Melted . | . . . . . . . . . . . . . Combat Hostiles . | . . . . . . . . . . . . . Parts Melted . | . . . . . . . . . . . . . Heat Transferred . | . . . . . . . . . . . . . Parts Sabotaged . | . . . . . . . . . . . . . Parts Stolen . | . . . . . . . . . . . . . Parts Stripped . | . . . . . . . . . . . . . Power Chain Reactions . | . . . . . . . . . . . . . Alert | -11 -10 -9 -8 -7 -7 -6 -5 -5 -4 -3 -3 -2 ------- Run | Yrd Mat Mat Mat Fac DSF Fac Fac DSF Fac Res DSF Res Maximum Alert Level 2 | . . . . . . . . . 2 1 . . Low Security (%) 83 | 100 100 100 100 100 100 100 100 100 17 . 100 100 Level 1 13 | . . . . . . . . . 66 100 . . Level 2 2 | . . . . . . . . . 16 . . . Level 3 . | . . . . . . . . . . . . . Level 4 . | . . . . . . . . . . . . . Level 5 . | . . . . . . . . . . . . . High Security . | . . . . . . . . . . . . . Max Security . | . . . . . . . . . . . . . Peak Influence 425 | . . . 66 29 20 197 95 167 425 221 158 72 Initial 219 | . . . . 29 20 . 95 68 87 219 158 72 Average 91 | . . . 20 29 11 37 95 113 297 217 148 56 Influence Increases 1069 | . . . 133 . 1 378 3 99 432 2 . 21 Destroy 0b10 Robot/C 260 | . . . . . . 80 . 40 140 . . . Destroy 0b10 Robot/NC 35 | . . . . . . 25 . . 10 . . . Destroy Leader 44 | . . . . . . 12 . 10 22 . . . Successful Hack 164 | . . . 25 . . 71 3 . 65 . . . Disable Machine 30 | . . . . . . . . . 30 . . . Destroy Structure 206 | . . . 18 . 1 55 . 34 90 2 . 6 Partial Spotted 45 | . . . 15 . . 15 . . 15 . . . Lose Combat Pursuer 285 | . . . 75 . . 120 . 15 60 . . 15 Influence Decreases 1016 | . . . 67 37 30 181 102 30 180 210 83 96 Entered New Map 567 | . . . . 37 9 . 102 30 80 200 53 56 Time Decay 308 | . . . 37 . . 171 . . 70 10 . 20 Lost Part 141 | . . . 30 . 21 10 . . 30 . 30 20 Squads Dispatched 10 | . . 1 2 . . 2 . 1 3 . 1 . Investigation 3 | . . . 1 . . . . . 2 . . . Extermination 2 | . . . . . . 1 . . 1 . . . Reinforcement 5 | . . 1 1 . . 1 . 1 . . 1 . Assault . | . . . . . . . . . . . . . Garrison . | . . . . . . . . . . . . . Intercept . | . . . . . . . . . . . . . Searches Triggered . | . . . . . . . . . . . . . Construction Impeded . | . . . . . . . . . . . . . Haulers Reinforced 1 | . . . . . . 1 . . . . . . Active Scanning Responses . | . . . . . . . . . . . . . Cargo Convoy Interrupts . | . . . . . . . . . . . . . Stealth | -11 -10 -9 -8 -7 -7 -6 -5 -5 -4 -3 -3 -2 --------- Run | Yrd Mat Mat Mat Fac DSF Fac Fac DSF Fac Res DSF Res Distress Signals 2 | . . 1 . . . . . . 1 . . . Communications Jammed . | . . . . . . . . . . . . . Distress Signals . | . . . . . . . . . . . . . Times Spotted 70 | . 1 12 10 . 3 19 . 3 19 . 1 2 Peak Tracking Total 13 | . 1 9 9 . 3 13 . 3 9 . 1 2 Tactical Retreats 9 | . . . 1 . . 4 . 1 2 . . 1 Traps | -11 -10 -9 -8 -7 -7 -6 -5 -5 -4 -3 -3 -2 ------- Run | Yrd Mat Mat Mat Fac DSF Fac Fac DSF Fac Res DSF Res Traps Triggered 3 | . . . 1 . . 1 . . 1 . . . Indirectly . | . . . . . . . . . . . . . Trap Hack Attempts . | . . . . . . . . . . . . . Triggered . | . . . . . . . . . . . . . Disarmed . | . . . . . . . . . . . . . Reprogrammed . | . . . . . . . . . . . . . Reused . | . . . . . . . . . . . . . Traps Extracted . | . . . . . . . . . . . . . Installed . | . . . . . . . . . . . . . Triggered . | . . . . . . . . . . . . . Machines | -11 -10 -9 -8 -7 -7 -6 -5 -5 -4 -3 -3 -2 ---------- Run | Yrd Mat Mat Mat Fac DSF Fac Fac DSF Fac Res DSF Res Machines Disabled 2 | . . . . . . . . . 2 . . . Max in Single Turn 1 | . . . . . . . . . 1 . . . Machines Repaired . | . . . . . . . . . . . . . Machines Dismantled . | . . . . . . . . . . . . . Machines Sabotaged . | . . . . . . . . . . . . . Overloaded Fab Kills . | . . . . . . . . . . . . . Hacking | -11 -10 -9 -8 -7 -7 -6 -5 -5 -4 -3 -3 -2 --------- Run | Yrd Mat Mat Mat Fac DSF Fac Fac DSF Fac Res DSF Res Machines Accessed 19 | . . . 2 1 . 6 1 . 6 1 . 2 Terminals 19 | . . . 2 1 . 6 1 . 6 1 . 2 Fabricators . | . . . . . . . . . . . . . Repair Stations . | . . . . . . . . . . . . . Recycling Units . | . . . . . . . . . . . . . Scanalyzers . | . . . . . . . . . . . . . Garrison Access . | . . . . . . . . . . . . . Total Hacks 48 | . . . 6 1 . 19 2 . 15 1 . 4 Successful 23 | . . . 2 1 . 11 1 . 6 1 . 1 Failed 25 | . . . 4 . . 8 1 . 9 . . 3 Catastrophic 3 | . . . 1 . . . . . 2 . . . Database Lockouts . | . . . . . . . . . . . . . Manual 25 | . . . 3 . . 9 . . 10 . . 3 Terminals 48 | . . . 6 1 . 19 2 . 15 1 . 4 Fabricators . | . . . . . . . . . . . . . Repair Stations . | . . . . . . . . . . . . . Recycling Units . | . . . . . . . . . . . . . Scanalyzers . | . . . . . . . . . . . . . Garrison Access . | . . . . . . . . . . . . . Terminal Hacks 17 | . . . 2 1 . 7 1 . 4 1 . 1 Part Schematic 1 | . . . . . . 1 . . . . . . Open DSF 4 | . . . . 1 . . 1 . . 1 . 1 Level Access Points 3 | . . . 1 . . 1 . . 1 . . . Branch Access Points 3 | . . . 1 . . 1 . . 1 . . . Terminal Index 2 | . . . . . . 1 . . 1 . . . Garrison Index 1 | . . . . . . . . . 1 . . . Locate Traps 1 | . . . . . . 1 . . . . . . Hauler Manifests 1 | . . . . . . 1 . . . . . . Zone Layout 1 | . . . . . . 1 . . . . . . Fabricator Hacks . | . . . . . . . . . . . . . Repair Station Hacks . | . . . . . . . . . . . . . Recycling Unit Hacks . | . . . . . . . . . . . . . Scanalyzer . | . . . . . . . . . . . . . Garrison Access Hacks . | . . . . . . . . . . . . . Unauthorized Hacks 6 | . . . . . . 4 . . 2 . . . Terminals 6 | . . . . . . 4 . . 2 . . . Track 1 | . . . . . . 1 . . . . . . Botnet 3 | . . . . . . 2 . . 1 . . . Operators 2 | . . . . . . 1 . . 1 . . . Fabricators . | . . . . . . . . . . . . . Repair Stations . | . . . . . . . . . . . . . Recycling Units . | . . . . . . . . . . . . . Scanalyzers . | . . . . . . . . . . . . . Garrison Access . | . . . . . . . . . . . . . Data Cores Recovered 1 | . . . . . . 1 . . . . . . Used . | . . . . . . . . . . . . . Hacking Detections 15 | . . . 2 . . 6 . . 6 . . 1 Full Trace Events 2 | . . . . . . . . . 2 . . . Feedback Events . | . . . . . . . . . . . . . Feedback Blocked . | . . . . . . . . . . . . . Robot Schematics Acquired . | . . . . . . . . . . . . . Robots Built . | . . . . . . . . . . . . . Authchips . | . . . . . . . . . . . . . Time . | . . . . . . . . . . . . . Total Robot Build Rating . | . . . . . . . . . . . . . Part Schematics Acquired 1 | . . . . . . 1 . . . . . . Parts Built . | . . . . . . . . . . . . . Authchips . | . . . . . . . . . . . . . Time . | . . . . . . . . . . . . . Total Part Build Rating . | . . . . . . . . . . . . . Parts Repaired . | . . . . . . . . . . . . . Time . | . . . . . . . . . . . . . Parts Recycled . | . . . . . . . . . . . . . Recycled Matter . | . . . . . . . . . . . . . Retrieved Matter . | . . . . . . . . . . . . . Retrieved Components . | . . . . . . . . . . . . . Parts Scanalyzed . | . . . . . . . . . . . . . Part Schematics Acquired . | . . . . . . . . . . . . . Parts Damaged . | . . . . . . . . . . . . . Bothacking | -11 -10 -9 -8 -7 -7 -6 -5 -5 -4 -3 -3 -2 ------------ Run | Yrd Mat Mat Mat Fac DSF Fac Fac DSF Fac Res DSF Res Used RIF Installer . | . . . . . . . . . . . . . Robots Hacked . | . . . . . . . . . . . . . Non-combat . | . . . . . . . . . . . . . Combat . | . . . . . . . . . . . . . Robot Hacks Applied . | . . . . . . . . . . . . . Relay Couplers Released . | . . . . . . . . . . . . . Fabnet Peak Effective % . | . . . . . . . . . . . . . Robots Rewired . | . . . . . . . . . . . . . Allies Hacked . | . . . . . . . . . . . . . Hacks Repelled . | . . . . . . . . . . . . . Allies | -11 -10 -9 -8 -7 -7 -6 -5 -5 -4 -3 -3 -2 -------- Run | Yrd Mat Mat Mat Fac DSF Fac Fac DSF Fac Res DSF Res Total Allies . | . . . . . . . . . . . . . Largest Group . | . . . . . . . . . . . . . Highest-Rated Group . | . . . . . . . . . . . . . Highest-Rated Ally . | . . . . . . . . . . . . . Total Orders . | . . . . . . . . . . . . . Ally Attacks . | . . . . . . . . . . . . . Total Damage . | . . . . . . . . . . . . . Kills . | . . . . . . . . . . . . . Allies Corrupted . | . . . . . . . . . . . . . Allies Melted . | . . . . . . . . . . . . . Intel | -11 -10 -9 -8 -7 -7 -6 -5 -5 -4 -3 -3 -2 ------- Run | Yrd Mat Mat Mat Fac DSF Fac Fac DSF Fac Res DSF Res Active Infowar (turns) 779 | . . . . . 24 372 8 70 158 30 59 58 Optics 779 | . . . . . 24 372 8 70 158 30 59 58 Terrain 275 | . . . . . . . . 12 123 30 53 57 T.N.C. 660 | . . . . . . 346 8 70 158 30 48 . Robot Analysis Total . | . . . . . . . . . . . . . Derelict Logs Recovered . | . . . . . . . . . . . . . Drone Launches . | . . . . . . . . . . . . . Drone Recoveries . | . . . . . . . . . . . . . Exploration | -11 -10 -9 -8 -7 -7 -6 -5 -5 -4 -3 -3 -2 ------------- Run | Yrd Mat Mat Mat Fac DSF Fac Fac DSF Fac Res DSF Res Turns Passed 989 | 4 29 66 93 3 39 372 8 70 158 30 59 58 Spaces Moved 1910 | 1 54 122 148 6 57 747 22 100 376 65 97 115 Core 357 | 1 54 122 147 6 8 1 . . . . 12 6 Treads 1 | . . . 1 . . . . . . . . . Legs . | . . . . . . . . . . . . . Wheels . | . . . . . . . . . . . . . Hover 6 | . . . . . . . . . . . 5 1 Flight 1546 | . . . . . 49 746 22 100 376 65 80 108 Fastest Speed 23 | 50 50 50 50 50 25 27 34 23 23 30 30 34 Average Speed 34 | 50 50 50 50 50 34 31 34 28 24 30 46 38 Slowest Speed 200 | 50 50 50 160 50 50 50 34 112 30 30 200 100 Overloaded Moves . | . . . . . . . . . . . . . Propulsion Burnouts . | . . . . . . . . . . . . . Robots Hopped 19 | . . . . . . 17 . . . . . 2 Potential Cave-ins . | . . . . . . . . . . . . . Cave-ins Triggered . | . . . . . . . . . . . . . Exploration Rate (%) 31 | 2 19 28 31 . 85 32 2 77 19 5 78 4 Regions Visited 12 Branch Regions . Pre-discovered Areas . | . . . . . . . . . . . . . Known Exits Taken 6 | . . . 1 1 . 1 1 . 1 1 . . Unknown Exits Taken 3 | 1 1 1 . . . . . . . . . . Scrap Searched . | . . . . . . . . . . . . . Spaces Dug 106 | . . . 8 . 1 34 . 21 39 1 . 2 Terrain Destroyed 144 | . . . 18 . 1 52 . 21 49 1 . 2 Melee 52 | . . . 1 . 1 34 . . 13 1 . 2 Projectile . | . . . . . . . . . . . . . AOE 92 | . . . 17 . . 18 . 21 36 . . . Terrain Rammed . | . . . . . . . . . . . . . Walls Destroyed . | . . . . . . . . . . . . . Machines Disabled . | . . . . . . . . . . . . . Actions | -11 -10 -9 -8 -7 -7 -6 -5 -5 -4 -3 -3 -2 --------- Run | Yrd Mat Mat Mat Fac DSF Fac Fac DSF Fac Res DSF Res Total 2072 | 5 55 124 159 5 70 788 21 138 406 69 109 123 Wait 35 | . . . . . 3 3 . 20 . . 5 4 Move 1863 | . 53 121 147 5 56 714 21 99 375 64 96 112 Hop 16 | . . . . . . 15 . . . . . 1 Pick Up 17 | . 2 . 4 . 2 3 . 4 1 . 1 . Fast Attach 25 | . . . . . 7 6 . 4 2 2 4 . Attach 16 | 2 . . 2 . 1 2 . 3 3 . . 3 Detach 4 | . . . . . . . . 1 2 . . 1 Swap 4 | . . . . . . 3 . 1 . . . . Drop 11 | 3 . . . . . 1 . 4 . . 3 . Fire 12 | . . . 2 . . 3 . 2 5 . . . Melee 63 | . . . 1 . 1 38 . . 18 3 . 2 Ram . | . . . . . . . . . . . . . Kick . | . . . . . . . . . . . . . Crush 6 | . . 3 3 . . . . . . . . . Escape Stasis . | . . . . . . . . . . . . . Rewire . | . . . . . . . . . . . . . Trap . | . . . . . . . . . . . . . Miscellaneous . | . . . . . . . . . . . . . Route ------- -11/Scrapyard -10/Materials (discovered 2 exits: [*Mat] / [*Min]) -9/Materials -8/Materials (discovered 5 exits: *Fac x3 / Sto x2) -7/Factory -7/DSF -6/Factory (discovered 6 exits: *Fac x4 / Low x2) -5/Factory -5/DSF -4/Factory (discovered 6 exits: *Res x4 / *Upp x2) -3/Research -3/DSF -2/Research History --------- Turn | Location | Event 1 | -11/Scrapyard | Released all parts (6) 5 | -11/Scrapyard | Discovered new exit (range 0) 5 | -11/Scrapyard | Entered Materials 14 | -10/Materials | Discovered new exit (range 15) 29 | -10/Materials | Discovered new exit (range 10) 34 | -10/Materials | Entered another Materials area 34 | -9/Materials | Evolved 2 slots: Propulsion x1, Utility x1 92 | -9/Materials | Discovered new exit (range 16) 100 | -9/Materials | Entered another Materials area 100 | -8/Materials | Evolved 2 slots: Propulsion x1, Utility x1 108 | -8/Materials | Identified exit to Storage 132 | -8/Materials | Identified exit to Factory 185 | -8/Materials | Lost 3 parts (2n1w) 193 | -8/Materials | Entered Factory 193 | -7/Factory | Evolved 2 slots: Propulsion x1, Utility x1 196 | -7/Factory | Identified exit to DSF 196 | -7/Factory | Entered DSF 226 | -7/DSF | Additional patrols routed to DSF 228 | -7/DSF | Discovered new exit (range 14) 235 | -7/DSF | Entered Factory 235 | -6/Factory | Evolved 2 slots: Propulsion x1, Utility x1 258 | -6/Factory | Lost 4 parts (4n) 343 | -6/Factory | Identified exit to Lower Caves 495 | -6/Factory | Identified exit to Factory 607 | -6/Factory | Entered another Factory area 607 | -5/Factory | Evolved 2 slots: Utility x2 615 | -5/Factory | Identified exit to DSF 615 | -5/Factory | Entered DSF 642 | -5/DSF | Additional patrols routed to DSF 661 | -5/DSF | Discovered new exit (range 22) 685 | -5/DSF | Entered Factory 685 | -4/Factory | Evolved 2 slots: Power x1, Propulsion x1 704 | -4/Factory | Discovered new exit (range 5) 710 | -4/Factory | Identified exit to Upper Caves 782 | -4/Factory | Identified exit to Research 843 | -4/Factory | Entered Research 843 | -3/Research | Evolved 2 slots: Utility x2 860 | -3/Research | Found Prototype Processor 860 | -3/Research | Identified Exp. Signal Interpreter 873 | -3/Research | Identified exit to DSF 873 | -3/Research | Entered DSF 901 | -3/DSF | Additional patrols routed to DSF 916 | -3/DSF | Discovered new exit (range 15) 931 | -3/DSF | Identified exit to Research 932 | -3/DSF | Entered Research 932 | -2/Research | Evolved 2 slots: Utility x2 951 | -2/Research | Lost 3 parts (1p2n) 966 | -2/Research | Spotted B-90 Cyclops 990 | -2/Research | Self-destructed Last Messages --------------- 00916_ EXIT=FOUND 00917_ Acquired Hacking Suite. 00920_ Penetrated by Slug. 00920_ Imp. Linear Gravjet destroyed. 00920_ Fusion Compressor destroyed. 00920_ Critical hit (Blast). 00920_ Knocked back. 00921_ Acquired 5 matter. 00921_ Discarded Transport Network Coupler. 00922_ Acquired Hacking Suite. 00931_ EXIT=IDENTIFIED: RESEARCH PARAMETERS=UTILITY+2 LOCATION=RESEARCH GOAL=ESCAPE 00959_ Connecting with DSF Access... 00966_ Imp. VTOL Module destroyed. 00967_ Katana destroyed. 00971_ K-01 Serf destroyed. 00972_ K-01 Serf collects debris. 00990_ Connecting with Terminal... Map ----- +----------------------------------------------------+ | ########+##### ##??# # ? ????? ??????????#??? | | ## #???# # ???????? ???? ?????+? | | ## ##?#? #? ?? ? ????? ??????#?? ? | | ## ##?#? #?? #??????#####+#####?? | | ## ##### #?????#?#?#??# #?? | | ########+##### # ?????## ??## # ? | | ##?# # #? ? ##????## #?? | | ?#?# # # ? ?#??##?# "F "" #?? | | #??# + #??##?? ?? ## """"" #?? | | ?### # ####### ####??#?? ## """"" #?? | | ?#?# # #? ?# ##?#???#? ? ## #? | | #??# # # ??## ###?#?##? ?? ## # | | ?#?# ]] # #? ? # ###############+########+# | | ??## ]] # #? ? + | | ??############ # ? # ############ ########## | | ?????????#???# #? ######?#?####### #?#####?## | | ?#????#??#??## # ? ?##?###?######## ########## | | ?#?#??#????#?# #? ? ?########?###### ## | | ?? ?????????# #?#?#?#####?#?####?# ## | | ????????? #?# ##??#??##########?##T ## | | ?????????? ? ? ? ?? ?# ###### ## | | #? ????? ? #?? ? # ###### ## | | ???????????# ? ? ???? ?#"" + + | | ????"???" # ? ???"? ? #"" #########+## | | ?? ????? ???#? ?"?" ?#"" ##?###?# # = | | ???????? ???# ?"?? ? #T@ ##?#?#?# # | | ???????????#? ??? ? #"" ####?### ######### | | ?????????????? ? ?? ?? #"" ######## ###? ? | | ?????????????? ????? ??#"" ; ## ! #?? ??? | | ?????????????? ???? ??# # ## #?#??? ? | | ????????? ??? ? ? + # ## ! #?# ? ? | | ??????????#????##?? # # ##""#### ? ?? | | ?????????????##???? ? # # ### #?#? #? | | ????????????#?#?#?# ? ######## ##" ### #? | | ??????????????#?????? ? ? ??? # " # | | ??????????????#?#?# ?? ??# # # | | ????????????#???????? ?? ? ?# " #? | | ???????????????#?#?????? ???# + !! #? | | ??????????????#??#??##???#?? ?# * # ! #? | | ??????????????#?#??????##?? ?# # # | | ?????????????##??##?##??## ? ####### #? | | ????????????????????#???#? ??? ?#??# ! #? | | ???????????????????#?#??#?? ???#???? #? | | ??????????????????##??#?# ? ? ? ?? ## | | ??????????????????#?#??#????? ?? %% ## | | ?????????????????#?????????? ??### ## | | ???????????????????????#? ??? ????## #? | | ????????????????????????????????#?#### #### #? | | ?????????????????????????????? ? ????# #?#? #? | | ?????????????????????????????? ????#?# #??? ## | +----------------------------------------------------+ Best States ------------- Heat Dissipation 49 Energy Generation 35 Energy Capacity 160 Matter Stores 300 Matter Capacity 300 Sight Range 22 Terrain Scan Range 20 Terrain Scan Density 210 Evasion (%) 65 Melee Accuracy 14 Recoil Reduction 2 Offensive Hacking 52 Item Schematics ----------------- Adv. Hacking Suite | -6/Factory | Hacked Robot Schematics ------------------ None Fabricated ------------ Nothing Repaired ---------- Nothing Alien Tech Used ----------------- None Achievements -------------- None Challenges ------------ None Game ------ Seed BladePlasmaShield Manual? 0 Play Time 00:29:30 Cumulative 532.1 hours Start 2025.06.10 @ 07:05:19 End 2025.06.10 @ 07:33:33 Sessions 1 Manual Loads 0 Difficulty Rogue Special Mode None Game No. 621 Rogue 621 Adventurer 0 Explorer 0 Win Type - Total 18 Types 12/0/5/1/0/0/0/0/0/0 Lore% 83 Gallery% 82 Achievement% 82 Wizard Run 0 Options --------- Layout 0 ASCII 0 Keyboard 0 Movement Numpad Keybinds 0 Fullscreen 1 Font 18/SmallcapsGlow Map View 76x50 Zoom Use 0% Tactical HUD 1 Map Filters NONE Filters NONE Steam 1 RUN: 0b145caf-1be0-4f5f-b23b-7fac48294f27